{"text_format":"1","workbook":"xlsx","n_sheets":2,"sheets":["CIIU","Hoja3"],"not_rendered":{"charts":0,"images":0,"macros":1,"external_links":0,"defined_names":4,"comments":0,"pivot_tables":0},"unopened":[],"bounds":{"document_bytes":16777216,"sheet_cells":100000,"rows_first":2000,"rows_last":500,"rows_between":2000,"halvings":0,"cell_chars":16384,"cell_head_chars":4096},"cells_cut":0,"cells_raw":0,"read":"whole","date_system":"1900"}

{"sheet":"CIIU","index":0,"n_rows":647,"n_cols":2,"rows_kept":647,"cut":false,"hidden":false,"merged":[]}
["Numero","Actividad"]
[56210,"Abastecimiento de eventos          "]
[31002,"Acabado de muebles de madera, excepto tapicería"]
[13130,"Acabado de productos textiles         "]
[85492,"Academias de conductores"]
[62020,"Act. de consultoría informática y de adm. de medios informát"]
[39000,"Act. de saneamiento y otros servicios de gestión de desechos"]
[98100,"Act. Indiferenc. produc. de bienes de los hogares uso propio"]
[91030,"Activ. de jardines botánicos, zoológicos, parques naturales."]
[84230,"Activ. de mantenimiento del orden público y de seguridad    "]
[74102,"Actividad de diseño de modas"]
[66121,"Actividad de las casas de cambio"]
[70202,"Actividad de las gestorías"]
[66122,"Actividad de los corredores de cambio y de valores"]
[64923,"Actividad de los prestamistas"]
[81100,"Actividades combinadas de apoyo a instalaciones      "]
[82910,"Actividades de agencias de cobranza y oficinas de crédito   "]
[78100,"Actividades de agencias de colocación de empleados     "]
[63910,"Actividades de agencias de noticias        "]
[78200,"Actividades de agencias de trabajo temporal      "]
[79110,"Actividades de agencias de viajes        "]
[55130,"Actividades de alojamiento en albergues"]
[55192,"Actividades de alojamiento en estancias turísticas"]
[55110,"Actividades de alojamiento en hoteles"]
[55191,"Actividades de alojamiento en pensiones de corto plazo"]
[55901,"Actividades de alojamiento pensiones familiares sin servicio"]
[55120,"Actividades de alojamiento transitorio: hoteles alta rotativ"]
[9900,"Actividades de apoyo a explotación de otras minas y canteras"]
[9100,"Actividades de apoyo a extracción de petróleo y gas natural"]
[90000,"Actividades de arte, entretenimiento y creatividad    "]
[91010,"Actividades de Bibliotecas y archivos        "]
[82200,"Actividades de centros de llamados       "]
[93120,"Actividades de clubes deportivos         "]
[94991,"Actividades de comisiones de fomento escolares y liceales"]
[71102,"Actividades de diseño de paisajes"]
[59130,"Actividades de distribución películas y programas TV"]
[82920,"Actividades de embalaje          "]
[74200,"Actividades de fotografía         "]
[59200,"Actividades de grabación y publicación  grabaciones sonoras."]
[86100,"Actividades de hospitales         "]
[43901,"Actividades de impermeabilización de edificios."]
[18111,"Actividades de impresión de diarios y revistas."]
[80300,"Actividades de investigación         "]
[84110,"Actividades de la administración pública en general      "]
[92002,"Actividades de la banca de loterías y quinielas"]
[92003,"Actividades de las agencias y sub agencias de quinielas"]
[94999,"Actividades de las sociedades literarias, cívicas y sociales"]
[66220,"Actividades de los agentes y corredores de seguro     "]
[92001,"Actividades de los casinos"]
[91020,"Actividades de Museos y preservación de lugares históricos  "]
[79120,"Actividades de operadores turísticos         "]
[94110,"Actividades de organizaciones empresariales y de empleadores"]
[94120,"Actividades de organizaciones profesionales         "]
[99000,"Actividades de organizaciones y órganos extraterritoriales."]
[93210,"Actividades de parques de atracciones y parques temáticos   "]
[59110,"Actividades de producción de películas y programas de TV"]
[62010,"Actividades de programación informática         "]
[96095,"Actividades de prostíbulos y similares"]
[59140,"Actividades de proyección de películas.        "]
[82110,"Actividades de servicio administrativa combinadas de oficina"]
[52230,"Actividades de servicio secundario de transporte  vía aérea "]
[52220,"Actividades de servicio secundario transporte  vía acuática "]
[94200,"Actividades de sindicatos         "]
[64200,"Actividades de sociedades de control (holding)      "]
[1907,"Actividades no bien especificadas"]
[1630,"Actividades posteriores a la cosecha        "]
[59120,"Actividades posteriores a la prod. de películas  y progr. TV"]
[75000,"Actividades veterinarias         "]
[3210,"Acuicultura marítima           "]
[66110,"Administración de mercados financieros         "]
[93119,"Administración de otro tipo de instalaciones deportivas"]
[66301,"AFAPs"]
[45409,"Agentes comisionistas y otros tipos comercio de motocicletas"]
[52292,"Agentes de transporte aéreo"]
[52293,"Agentes de transporte férreo y carretero"]
[52291,"Agentes de transporte marítimo"]
[37000,"Alcantarillado          "]
[77220,"Alquiler de cintas de vídeo y discos      "]
[77304,"Alquiler de eq. de computación y  oficina sin operario"]
[77302,"Alquiler de equipo agrícola sin operario"]
[77303,"Alquiler de equipo de construcción sin operario"]
[77301,"Alquiler de maquinaria manufacturera sin operario"]
[77309,"Alquiler de otro tipo de maq., equipo y mercancías tangibles"]
[77290,"Alquiler de otros efectos personales y art. domésticos ncp  "]
[1491,"Apicultura: producción de cera y miel de abeja."]
[43902,"Armado y desarmado de plataformas y andamios"]
[68203,"Arrendamiento de inmuebles rurales"]
[64910,"Arrendamiento financiero           "]
[77400,"Arrendamiento prop.intelectual y similares exc. dchos autor"]
[16102,"Aserrado, cepillado y trabajo a máquina de la madera."]
[68202,"Avalúos de inmuebles"]
[56301,"Bares de expendio de bebidas"]
[36000,"Captación, tratamiento y suministro de agua     "]
[46106,"Casas de remates"]
[96039,"Cementerios para humanos y otras actividades conexas n.c.p."]
[16101,"Chipeado de madera"]
[86203,"Clínicas médicas de estética corporal"]
[86201,"Clínicas médicas, excepto de estética corporal"]
[56302,"Clubes nocturnos y similares con suministro de bebidas"]
[43291,"Colocación de aislamientos térmicos y acústicos"]
[43302,"Colocación de revestimientos de pisos y paredes"]
[43303,"Colocación de tabiques de yeso y cielorrasos"]
[47714,"Comercio  por menor de prendas de vestir de cueros y pieles"]
[47214,"Comercio  por menor de productos de panadería y confitería"]
[46635,"Comercio al por mayor de artículos sanitarios"]
[46310,"Comercio al por mayor de aves y sus productos "]
[46303,"Comercio al por mayor de bebidas importadas, excepto vinos"]
[46304,"Comercio al por mayor de bebidas nacionales, excepto vinos"]
[46413,"Comercio al por mayor de calzado"]
[46305,"Comercio al por mayor de chacinados"]
[46301,"Comercio al por mayor de comestibles, excepto carnes."]
[46693,"Comercio al por mayor de desechos y materiales para reciclar"]
[46495,"Comercio al por mayor de electrodomésticos"]
[46692,"Comercio al por mayor de fertilizantes y agroquímicos"]
[46203,"Comercio al por mayor de flores y plantas"]
[46494,"Comercio al por mayor de juguetes"]
[46201,"Comercio al por mayor de lana, cuero y cerdas"]
[46631,"Comercio al por mayor de madera"]
[46632,"Comercio al por mayor de materiales de construcción"]
[46620,"Comercio al por mayor de metales y de minerales metalíferos."]
[46492,"Comercio al por mayor de muebles y accesorios del hogar"]
[46590,"Comercio al por mayor de otro tipo de maquinaria y equipo.  "]
[46309,"Comercio al por mayor de otros alimentos y bebidas"]
[46699,"Comercio al por mayor de otros productos n.c.p."]
[46412,"Comercio al por mayor de prendas de vestir"]
[46493,"Comercio al por mayor de productos de cristalería y menage"]
[46307,"Comercio al por mayor de productos de la pesca"]
[46691,"Comercio al por mayor de productos químicos industriales"]
[46302,"Comercio al por mayor de productos vinícolas"]
[46308,"Comercio al por mayor de tabacos y cigarrillos"]
[46411,"Comercio al por mayor de textiles"]
[46634,"Comercio al por mayor de vidrio."]
[46900,"Comercio al por mayor no especializado de otros productos.  "]
[47215,"Comercio al por menor de  pescados y mariscos"]
[47736,"Comercio al por menor de artesanías, fantasías y souvenirs"]
[47741,"Comercio al por menor de artículos de construcción usados"]
[47521,"Comercio al por menor de artículos de ferretería"]
[47999,"Comercio al por menor de artículos n.c.p. "]
[47213,"Comercio al por menor de aves y huevos"]
[47631,"Comercio al por menor de bicicletas"]
[47717,"Comercio al por menor de calzado"]
[47733,"Comercio al por menor de carbón y leña"]
[47212,"Comercio al por menor de carne y menudencias"]
[47593,"Comercio al por menor de cristalería y menage"]
[47591,"Comercio al por menor de electrodomésticos y accesorios"]
[47216,"Comercio al por menor de fiambres y productos de granja"]
[47211,"Comercio al por menor de frutas y verduras"]
[47594,"Comercio al por menor de instrumentos musicales y partituras"]
[47640,"Comercio al por menor de juegos y de juguetes "]
[47611,"Comercio al por menor de libros"]
[47592,"Comercio al por menor de muebles y accesorios para el hogar "]
[47749,"Comercio al por menor de otras mercancías de segunda mano "]
[45109,"Comercio al por menor de otros vehículos automotores"]
[47713,"Comercio al por menor de prendas de vestir de dama"]
[47712,"Comercio al por menor de prendas de vestir de hombres"]
[47742,"Comercio al por menor de prendas de vestir usada"]
[47723,"Comercio al por menor de productos veterinarios"]
[47734,"Comercio al por menor de relojes y joyas"]
[47595,"Comercio al por menor de sistemas de seguridad"]
[47510,"Comercio al por menor de textiles en almacenes especializado"]
[45102,"Comercio al por menor de vehículos nuevos"]
[45103,"Comercio al por menor de vehículos usados"]
[47524,"Comercio al por menor de vidrio plano - vidrierías"]
[47119,"Comercio al por menor en almacenes con despacho de bebidas"]
[47111,"Comercio al por menor en hipermercados"]
[47113,"Comercio al por menor en mini mercados"]
[47112,"Comercio al por menor en supermercados"]
[47115,"Comercio al por menor realizado por los free shops"]
[47522,"Comercio al por menos de pinturas y revestimientos similares"]
[47991,"Comercio ambulante al por menor de comestibles"]
[47910,"Comercio or menor a través de pedido por correo o Internet"]
[46496,"Comercio por mayor art. de papelería, libros y periódicos"]
[46610,"Comercio por mayor combustibles sólidos, líquidos y gaseosos"]
[46306,"Comercio por mayor de carne vacuna y menudencias"]
[46510,"Comercio por mayor de computadoras, periféricos y software"]
[46520,"Comercio por mayor de equipo electr. de telecomunicaciones"]
[46202,"Comercio por mayor de granos, semillas y frutas oleaginosas"]
[46209,"Comercio por mayor de otras mat. primas agropec. y animales "]
[46633,"Comercio por mayor de pinturas, papeles, revestimiento pisos"]
[46499,"Comercio por mayor instr. Music, ópticos, bicicl, otros ncp"]
[46530,"Comercio por mayor maq., equipo agrícola y sus suministros"]
[46419,"Comercio por mayor otro tipo de textiles, mercería y accesor"]
[45301,"Comercio por mayor partes, piezas y accesorios de vehículos"]
[46491,"Comercio por mayor prod. farmaceut, veterinarios, de tocador"]
[45401,"Comercio por mayor y menor de motocicletas, partes y accesor"]
[47737,"Comercio por menor  objetos de galerías de arte comerciales"]
[47718,"Comercio por menor accesorios cuero, exc.calzado y prendas "]
[47114,"Comercio por menor almacenes minoristas sin despacho bebidas"]
[47619,"Comercio por menor art. de papelería y otros art.de oficina"]
[47732,"Comercio por menor combustibles uso doméstico y gas envasado"]
[47530,"Comercio por menor de alfombras, cubiertas de pared y piso "]
[47220,"Comercio por menor de bebidas en almacenes especializados   "]
[47300,"Comercio por menor de combustible para vehículos "]
[47410,"Comercio por menor de computadoras, software, telecomunicaci"]
[47191,"Comercio por menor de diarios, tabacos, golosinas: Kioscos."]
[47420,"Comercio por menor de equipo de audio y video en almac.espec"]
[47620,"Comercio por menor de grabaciones musicales y videográficas "]
[47639,"Comercio por menor de otros art. de deporte, exc bicicletas"]
[47529,"Comercio por menor de otros artículos n.c.p. "]
[47523,"Comercio por menor de otros materiales de construcción"]
[47731,"Comercio por menor de plantas, fertilizantes, art. jardín"]
[47711,"Comercio por menor de prendas de vestir de niños y de bebés"]
[47715,"Comercio por menor de prendas de vestir interiores, lencería"]
[47716,"Comercio por menor de prendas de vestir no especificadas"]
[47230,"Comercio por menor de tabaco en almacenes especializados    "]
[47820,"Comercio por menor en puestos de venta art. textiles, calzad"]
[47890,"Comercio por menor en puestos de venta otras mercancías"]
[47810,"Comercio por menor en puestos de: alimento, bebidas y tabaco"]
[47735,"Comercio por menor equipo fotográfico, óptico y de precisión"]
[47525,"Comercio por menor materiales eléctricos y de conducción "]
[47719,"Comercio por menor ncp: prendas vestir, calzado, art.cuero "]
[47219,"Comercio por menor otros alimentos en almac. especializados."]
[47599,"Comercio por menor otros aparatos y equipos de uso doméstico"]
[47199,"Comercio por menor otros prod. en almac. no especializ. ncp"]
[45309,"Comercio por menor partes, piezas y accesorios de vehículos "]
[47721,"Comercio por menor prod. farmacéuticos, droguería y homeopat"]
[47729,"Comercio por menor prod. médicos, ortopédicos, otros  ncp"]
[47722,"Comercio por menor prod. tocador, perfumería y cosmética"]
[47116,"Comercio por menor realizado por cooperativas de consumo"]
[45104,"Comisionistas de vehículos automotores"]
[46102,"Consignatarios y comisionistas de ganado"]
[46103,"Consignatarios y comisionistas de lana y cuero"]
[46104,"Consignatarios y comisionistas de productos agrícolas"]
[30110,"Construcción de buques y estructuras flotantes       "]
[30120,"Construcción de embarcaciones de recreo y deporte      "]
[42200,"Construcción de infraestructura de servicios    "]
[42100,"Construcción de infraestructura de transporte   "]
[41000,"Construcción de obras de arquitectura"]
[42900,"Construcción de otros proyectos de ingeniería civil     "]
[43903,"Construcción de pilotajes para la edificación"]
[64301,"Corporación para el desarrollo"]
[53100,"Correo           "]
[23960,"Corte, tallado y acabado de la piedra      "]
[1461,"Cría de aves de corral para su venta"]
[1420,"Cría de caballos y otros equinos       "]
[1493,"Cría de conejos"]
[1450,"Cría de ganado porcino        "]
[1411,"Cría de ganado vacuno con destino a producción de carne"]
[1412,"Cría de ganado vacuno lechero (leche para la industria)"]
[1413,"Cría de ganado vacuno lechero (leche sin destino industrial)"]
[1492,"Cría de ñandúes"]
[1499,"Cría de otros animales n.c.p."]
[1440,"Cría de ovejas y cabras        "]
[1120,"Cultivo de arroz          "]
[1140,"Cultivo de caña de azúcar        "]
[1110,"Cultivo de cereales (excepto arroz), legumbre,semillas oleag"]
[1280,"Cultivo de especias y plantas aromáticas, medicinales y farm"]
[1199,"Cultivo de flores  y otros cultivos no perennes"]
[1191,"Cultivo de forrajes"]
[1230,"Cultivo de frutas cítricas         "]
[1240,"Cultivo de frutas con pepita y con hueso (manzana, pera,etc)"]
[1260,"Cultivo de frutas oleaginosas (ej, coco, aceitunas, etc)"]
[1220,"Cultivo de frutas tropicales y subtropicales       "]
[1250,"Cultivo de otras frutas y frutos secos arbóreos y de arbusto"]
[1133,"Cultivo de papa"]
[1210,"Cultivo de uvas          "]
[1131,"Cultivos de hortalizas hidropónicas "]
[1132,"Cultivos de hortalizas no hidropónicas"]
[15110,"Curtido y adobo de cueros; adobo y teñido de pieles   "]
[43110,"Demoliciones     "]
[52100,"Depósito y almacenaje         "]
[52294,"Despachantes de Aduana"]
[11010,"Destilación, rectificación y mezcla de bebidas alcohólicas"]
[60100,"Difusión de radio.         "]
[85420,"Educación cultural           "]
[85410,"Educación deportiva y recreativa         "]
[11040,"Elaboración bebidas no alcohól, aguas minerales, otras aguas"]
[10400,"Elaboración de aceites y grasas de origen vegetal y animal"]
[10800,"Elaboración de alimentos preparados para animales"]
[10720,"Elaboración de azúcar          "]
[11030,"Elaboración de bebidas malteadas y de malta      "]
[10739,"Elaboración de cacao (excepto para chocolate) y confites"]
[10731,"Elaboración de chocolate"]
[10750,"Elaboración de comidas y platos preparados       "]
[10120,"Elaboración de fiambres y chacinados"]
[10509,"Elaboración de helados"]
[10799,"Elaboración de otros productos alimenticios n.c.p."]
[10619,"Elaboración de otros productos de molinería de cereales."]
[10719,"Elaboración de otros productos panificados  en fábricas"]
[10711,"Elaboración de pan, productos panificados en forma tradicion"]
[10749,"Elaboración de pastas frescas"]
[10741,"Elaboración de pastas secas"]
[10712,"Elaboración de productos de confitería"]
[12000,"Elaboración de productos de tabaco      "]
[10501,"Elaboración de productos lácteos en general"]
[13111,"Elaboración de tops de lana"]
[11020,"Elaboración de vinos"]
[10612,"Elaboración harina de trigo y otros productos de su molienda"]
[10611,"Elaboración productos de molinería y de aceite de arroz"]
[97003,"Empleadores de cuidadores de enfermos"]
[97009,"Empleadores de otros tipos de personal"]
[97001,"Empleadores de servicio doméstico"]
[71200,"Ensayos y análisis técnicos   "]
[85100,"Enseñanza pre primaria y primaria       "]
[85210,"Enseñanza secundaria de formación general        "]
[85220,"Enseñanza secundaria de formación técnica y profesional     "]
[66210,"Evaluación de riesgos y daños        "]
[43120,"Excavación y movimiento de suelo   "]
[1500,"Explotación agropecuaria mixta"]
[2102,"Explotación de bosques"]
[8999,"Explotación de otras minas y canteras n.c.p."]
[8110,"Extracción de arena, arcilla,canto rodado, tierra, conchilla"]
[6200,"Extracción de gas natural        "]
[8991,"Extracción de gemas nat, piedras preciosas o semipreciosas"]
[2200,"Extracción de madera"]
[7100,"Extracción de minerales de hierro       "]
[7290,"Extracción de otros minerales metalíferos no ferrosos  n.c.p"]
[6100,"Extracción de petróleo crudo        "]
[8130,"Extracción de rocas ornamentales"]
[8930,"Extracción de sal          "]
[8190,"Extracción de yeso y de otros tipos de piedras en canteras"]
[8120,"Extracción, estrujado y quebrado de piedra caliza. Caleras"]
[29200,"Fabr. carrocerías vehículos autom;remolques y semi-remolques"]
[30300,"Fabr. de aeronaves, naves espaciales y de maquinaria conexa "]
[25939,"Fabr. de cuchillería, herramientas de mano y art. ferretería"]
[26600,"Fabr. de equipos radiológ, electromédicos y electro terapéut"]
[22202,"Fabr. de laminados planos y tubulares de materiales plástico"]
[28250,"Fabr. de maq. para elaboración de alimentos, bebidas, tabaco"]
[28220,"Fabr. de maq. para trabajar metales y máquinas herramientas"]
[28170,"Fabr. de maq. y equipo de oficina (exc.comput y perifericos)"]
[27100,"Fabr. de motores eléctricos, generadores, transformadores"]
[19209,"Fabr. de otros productos de la refinación de petróleo ncp"]
[17020,"Fabr. de papel y cartón ondulado y envases de papel y cartón"]
[29300,"Fabr. de partes y accesorios para motores de vehíc.automotor"]
[20210,"Fabr. de pesticidas y otros productos quím. de uso agropecua"]
[20220,"Fabr. de pinturas, barnices, prod.similares, tintas, masilla"]
[20130,"Fabr. de plásticos y caucho sintético en formas primarias   "]
[21000,"Fabr. de prod farmacéuticos y botánicos, sust.químicas medic"]
[24200,"Fabr. de prod. primarios de metales preciosos y no  ferrosos"]
[26510,"Fabr. equipos para medir, verificar y navegar y de control"]
[25130,"Fabr. generadores de vapor, exc calderas para calef.ctral"]
[17019,"Fabr. otros prod vinculados la produc. de papel y cartón ncp"]
[16290,"Fabr. otros prod.de madera;de  corcho, paja y mat.trenzables"]
[25991,"Fabr. productos de alambre y otros art. para la construcción"]
[35200,"Fabr.de gas; distrib. de combustibles gaseosos por tuberías."]
[28110,"Fabr.de motores y turbinas, exc. para aeronaves y automotore"]
[20110,"Fabricación  sustancias químicas básicas  y biocombustibles "]
[15121,"Fabricación cubre asientos en cuero  para la ind. automotriz"]
[20120,"Fabricación de abonos y compuestos de nitrógeno       "]
[15122,"Fabricación de accesorios de cuero y de materiales similares"]
[19202,"Fabricación de aceites, grasas y lubricantes"]
[26400,"Fabricación de aparatos de consumo electrónico."]
[27500,"Fabricación de aparatos de uso doméstico      "]
[13920,"Fabricación de artículos con materiales textiles,exc prendas"]
[32300,"Fabricación de artículos de deporte       "]
[23950,"Fabricación de artículos de hormigón, de cemento y de yeso  "]
[25992,"Fabricación de artículos de metal para uso doméstico"]
[14200,"Fabricación de artículos de piel       "]
[15123,"Fabricación de artículos de talabartería"]
[32902,"Fabricación de ataúdes"]
[27200,"Fabricación de baterías y acumuladores       "]
[30920,"Fabricación de bicicletas y sillas de ruedas para inválidos "]
[28130,"Fabricación de bombas, compresores, grifos y válvulas      "]
[27310,"Fabricación de cables de fibra óptica       "]
[15200,"Fabricación de calzado"]
[23940,"Fabricación de cemento, cal y yeso    "]
[28140,"Fabricación de cojinetes, engranajes y piezas de transmisión"]
[31006,"Fabricación de colchones y somieres"]
[26200,"Fabricación de computadoras y equipo periférico      "]
[20232,"Fabricación de cosméticos, perfumes y artículos de tocador"]
[22111,"Fabricación de cubiertas y cámaras de caucho"]
[13940,"Fabricación de cuerdas, cordeles, bramantes y redes      "]
[27330,"Fabricación de dispositivos de cableado        "]
[28160,"Fabricación de equipo de elevación y manipulación      "]
[26300,"Fabricación de equipos de comunicaciones       "]
[27400,"Fabricación de equipos de iluminación eléctricos      "]
[28120,"Fabricación de equipos hidráulicos         "]
[32901,"Fabricación de escobas, cepillos, plumeros y pinceles"]
[25931,"Fabricación de herrajes y cerraduras"]
[28180,"Fabricación de herramientas manuales         "]
[28150,"Fabricación de hornos, hogares y quemadores       "]
[32200,"Fabricación de instrumentos musicales        "]
[26700,"Fabricación de instrumentos ópticos y equipo fotográfico    "]
[32500,"Fabricación de instrumentos y suministros médicos y dentales"]
[20231,"Fabricación de jabones, detergentes y preparados de limpieza"]
[32120,"Fabricación de joyas de imitación y artículos conexos     "]
[32110,"Fabricación de joyas y artículos conexos       "]
[32400,"Fabricación de juegos y juguetes       "]
[28210,"Fabricación de maquinaria agropecuaria y forestal       "]
[28230,"Fabricación de maquinaria para la industria metalúrgica     "]
[23920,"Fabricación de materiales de arcilla para la construcción   "]
[30910,"Fabricación de motocicletas          "]
[31001,"Fabricación de muebles de madera"]
[31009,"Fabricación de muebles de otros materiales no especificados "]
[31004,"Fabricación de muebles y accesorios de metal"]
[14109,"Fabricación de otras prendas de vestir n.c.p. y accesorios"]
[15129,"Fabricación de otros artículos de cuero n.c.p."]
[17090,"Fabricación de otros artículos del papel y cartón  n.c.p.   "]
[27320,"Fabricación de otros cables eléctricos y electrónicos      "]
[27900,"Fabricación de otros equipos eléctricos       "]
[20239,"Fabricación de otros preparados para limpiar y pulir n.c.p."]
[22190,"Fabricación de otros productos de caucho       "]
[23930,"Fabricación de otros productos de cerámica y porcelana     "]
[25999,"Fabricación de otros productos de metal n.c.p."]
[22209,"Fabricación de otros productos de plástico n.c.p."]
[23990,"Fabricación de otros productos minerales no metálicos n.c.p."]
[20290,"Fabricación de otros productos químicos n.c.p.       "]
[13990,"Fabricación de otros productos textiles n.c.p.        "]
[30990,"Fabricación de otros tipos de equipo de transporte n.c.p.   "]
[28290,"Fabricación de otros tipos de maquinaria de uso especial    "]
[28190,"Fabricación de otros tipos de maquinaria de uso general    "]
[17012,"Fabricación de papel y cartón"]
[16220,"Fabricación de partes y piezas de carpintería para edificios"]
[14300,"Fabricación de prendas de tejidos de punto y ganchillo   "]
[14103,"Fabricación de prendas de vestir de cuero"]
[14104,"Fabricación de prendas de vestir de trabajo"]
[22203,"Fabricación de productos de plástico moldeado"]
[22201,"Fabricación de productos de plástico para la construcción"]
[26100,"Fabricación de productos electrónicos        "]
[25110,"Fabricación de productos metálicos para uso estructural     "]
[23910,"Fabricación de productos refractarios         "]
[16230,"Fabricación de recipientes de madera        "]
[14102,"Fabricación de ropa interior"]
[26800,"Fabricación de soportes magnéticos y ópticos      "]
[25120,"Fabricación de tanques, depósitos y recipientes de metal    "]
[13930,"Fabricación de tapices y alfombras        "]
[13910,"Fabricación de tejidos y tela de punto (Crochet o Ganchillo)"]
[29100,"Fabricación de vehículos automotores        "]
[23100,"Fabricación de vidrio y de productos de vidrio    "]
[16210,"Fabricación hojas  para enchapado y paneles a base de madera"]
[14101,"Fabricación prendas de vestir exteriores, excepto de piel"]
[64309,"Fideicomisos, fondos y otras fuentes de financiamiento n.c.p"]
[25910,"Forja, prensado, estampado y laminado de metales."]
[82190,"Fotocopiado, preparación de docum. y otro apoyo de oficinas"]
[24300,"Fundición de hiero y acero y de metales no ferrosos"]
[56103,"Heladerías que no elaboran el producto"]
[45101,"Importadores y comercio por mayor de vehículos automotores"]
[24100,"Industrias básicas de hierro y acero"]
[43222,"Instalación de calefacción y de aire acondicionado"]
[33200,"Instalación de maquinaria y equipo industrial      "]
[43304,"Instalación de objetos de carpintería de obra"]
[43210,"Instalación eléctrica y de comunicaciones    "]
[87100,"Instalaciones de residencias con cuidado de enfermeros     "]
[43221,"Instalaciones sanitarias"]
[87300,"Instit. Para el cuidado del adulto mayor y discapacitados   "]
[87200,"Instit. tratam. problemas salud mental y uso de sust.nocivas"]
[85491,"Institutos de enseñanza de idiomas"]
[68201,"Intermediación en compra, venta y arrendamiento de inmuebles"]
[64191,"Intermediación monetaria realizada por bancos comerciales"]
[64193,"Intermediación realizada por coop.y asociaciones de ah. y cr"]
[73200,"Investigación de mercados y encuestas de opinión públicas   "]
[72100,"Investigación y desarr. experimental en ciencias naturales "]
[72200,"Investigación y desarr. experimental en ciencias sociales "]
[93292,"Juegos electrónicos, videojuegos y similares, sin apuestas"]
[45204,"Lavaderos de autos"]
[81210,"Limpieza general de edificios         "]
[52240,"Manipulación de carga          "]
[52299,"Manipulación productos y otras act.complementarias al transp"]
[45201,"Mantenimiento y reparación mecánica y eléctrica de vehículos"]
[10111,"Matanza de ganado  no realizada por frigoríficos. (Abasto)"]
[10112,"Matanza de ganado vacuno, ovino y equino en frigoríficos"]
[10119,"Matanza de otros animales n.c.p., excepto aves"]
[10130,"Matanza, preparación y conservación de pollos y gallinas"]
[10190,"Matanza, procesamiento, conservación de carne otras aves ncp"]
[82300,"Organización de convenciones y eventos comerciales      "]
[64921,"Otorgamiento de tarjetas de crédito sin aval bancario"]
[68209,"Otras act inmob. realizadas por retribución o por contrato"]
[66190,"Otras act. auxiliares a las de servicios financieros    "]
[66290,"Otras act. auxiliares de seguros y fondos de pensiones    "]
[70209,"Otras act. de administración y consultoría de admin. de empr"]
[81309,"Otras act. de servic. manutención y cuidado de paisajes ncp"]
[62090,"Otras act. de tecnología de información y servicio de  compu"]
[64990,"Otras act. financieras, exc. seguros y fondos de pensiones"]
[74909,"Otras act. profesionales, científicas y técnicas ncp"]
[66129,"Otras act. relacionadas a títulos valor y corretaje mat.prim"]
[18119,"Otras act.de impresión, grabación y reproducción"]
[68109,"Otras actividades con bienes propios o arrendados"]
[66309,"Otras actividades de administración de fondos"]
[55909,"Otras actividades de alojamientos, exc. pensiones familiares"]
[93299,"Otras actividades de diversión y esparcimiento n.c.p."]
[92009,"Otras actividades de juegos y apuestas n.c.p."]
[81299,"Otras actividades de limpieza industrial y de edificios ncp"]
[80109,"Otras actividades de seguridad e investigación n.c.p."]
[82990,"Otras actividades de servicio de apoyo a los negocios, n.c.p"]
[80209,"Otras actividades de servicios de sistemas de seguridad"]
[96099,"Otras actividades de servicios n.c.p."]
[88900,"Otras actividades de trabajo social sin alojamiento, n.c.p. "]
[56290,"Otras actividades del servicio de alimentación       "]
[93199,"Otras actividades deportivas n.c.p."]
[43909,"Otras actividades especializadas de construcción"]
[74109,"Otras actividades especializadas en diseño"]
[86209,"Otras actividades médicas"]
[16109,"Otras actividades no comprendidas en las anteriores"]
[2109,"Otras actividades relacionadas a la forestación n.c.p."]
[86909,"Otras actividades relacionadas a la salud humana n.c.p."]
[71109,"Otras actividades técnicas y conexas"]
[56309,"Otras actividades vinculadas al servicio de bebidas"]
[32909,"Otras industrias manufactureras n.c.p."]
[43299,"Otras instalaciones de construcción n.c.p."]
[43229,"Otras instalaciones sanitarias, de calefacción y aire acond"]
[87900,"Otras instituciones residenciales de cuidado       "]
[13119,"Otras preparaciones e hilandería de fibras textiles, exc top"]
[1419,"Otras producciones de ganado vacuno no incluidas antes"]
[58190,"Otras publicaciones           "]
[43309,"Otras tareas de terminación de edificios"]
[47739,"Otro comercio al por menor de productos nuevos n.c.p."]
[46639,"Otro comercio por mayor art. de ferretería y calefacción."]
[78300,"Otro suministro de recursos humanos       "]
[25929,"Otro tipo de fabric., tratamiento y revestimiento de metales"]
[64199,"Otro tipo de intermediación monetaria n.c.p."]
[46109,"Otros agentes de comercio por mayor a cambio de retribución "]
[55199,"Otros alojamientos de corto plazo n.c.p."]
[1139,"Otros cultivo de raíces y tubérculos (excepto papa)"]
[69209,"Otros servicios contables "]
[1619,"Otros servicios de apoyo  a la agricultura"]
[1629,"Otros servicios de apoyo a la ganadería n.c.p."]
[56109,"Otros servicios de comida n.c.p. (carros móviles,etc.)"]
[63990,"Otros servicios de información n.c.p.        "]
[96019,"Otros servicios de limpieza de prendas n.c.p."]
[79900,"Otros servicios de reserva y actividades relacionadas     "]
[96029,"Otros servicios de tratamientos de belleza n.c.p."]
[69109,"Otros servicios jurídicos y notariales"]
[52219,"Otros servicios secundarios del transporte terrestre"]
[85499,"Otros tipos de enseñanza n.c.p."]
[64929,"Otros tipos de financiamiento n.c.p."]
[45209,"Otros tipos de reparaciones de vehículos automotores"]
[49239,"Otros tipos de transporte terrestre por carreteras n.c.p."]
[49229,"Otros tipos de transportes terrestres de pasajeros"]
[55200,"Parques de caravanas, campamentos de recreo y camping"]
[1905,"Personas físicas-NF y suc. indivisas sujetos pasivos de IP"]
[3120,"Pesca de agua dulce         "]
[3111,"Pesca marina artesanal"]
[3119,"Pesca marina de altura y otras capturas marinas"]
[43301,"Pintado y empapelado de edificios"]
[63120,"Portales Web           "]
[1904,"Predio rural con expl industria, comercio y/o act. Recreativ"]
[1903,"Predio rural con producción para autoconsumo"]
[1902,"Predio rural explotado por terceros"]
[1901,"Predio rural sin explotación"]
[63110,"Procesamiento de datos, hospedaje y actividades conexas     "]
[1640,"Procesamiento de semillas para la propagación       "]
[10300,"Procesamiento y conservación de frutas y vegetales     "]
[10200,"Procesamiento y conservación: pescados, crustáceos,moluscos "]
[10791,"Producción de hielo"]
[1469,"Producción de huevos"]
[1414,"Producción de semen bovino"]
[35100,"Producción, transmisión y distribución de energía eléctrica "]
[60200,"Programación y actividades de transmisión de televisión.    "]
[1300,"Propagación de plantas"]
[68101,"Propiedad y explot. de bienes inmobiliarios propios no rural"]
[52295,"Proveedores marítimos"]
[58110,"Publicación de libros          "]
[58130,"Publicación de periódicos, diarios y revistas       "]
[58200,"Publicación de programas informáticos      "]
[73100,"Publicidad           "]
[65200,"Reaseguros           "]
[22119,"Recauchutaje y renovación de cubiertas de caucho"]
[38110,"Recolección de desechos no peligrosos        "]
[2300,"Recolección de productos forestales diferentes a la madera"]
[38300,"Recuperación de materiales         "]
[19201,"Refinación de petróleo: combustibles"]
[74904,"Registros de marcas y patentes"]
[84120,"Regulación de organismos de servicio social excepto Seg. Soc"]
[84210,"Relaciones exteriores           "]
[46101,"Rematadores  por cuenta propia"]
[46105,"Remates ganaderos"]
[77210,"Renta y alquiler de equipo de recreo y deportivo    "]
[77100,"Renta y alquiler de vehículos automotores      "]
[95220,"Reparación aparatos domést. y equipamiento de hogar y jardín"]
[95210,"Reparación de aparatos de consumo eléctrico       "]
[95291,"Reparación de bicicletas y similares"]
[95230,"Reparación de calzado y artículos de cuero      "]
[95110,"Reparación de computadoras y equipo periférico       "]
[33190,"Reparación de equipo de otro tipo       "]
[33150,"Reparación de equipo de transporte, excepto vehículos autom."]
[33140,"Reparación de equipo eléctrico         "]
[33130,"Reparación de equipo electrónico y óptico       "]
[95120,"Reparación de equipos comunicacionales         "]
[95293,"Reparación de instrumentos musicales, afinación de pianos"]
[33120,"Reparación de maquinaria          "]
[95240,"Reparación de muebles y accesorios para el hogar     "]
[95299,"Reparación de otros bienes personales y domésticos n.c.p."]
[33110,"Reparación de productos elaborados de metal       "]
[95292,"Reparación de relojes, joyas y cronómetros"]
[45402,"Reparación y mantenimiento de motocicletas"]
[95294,"Reparación y modificación de ropa (costuras y zurcidos)"]
[18200,"Reproducción de grabaciones         "]
[56101,"Restaurantes y parrilladas"]
[56102,"Rotiserías"]
[93291,"Salas de baile y clubes nocturnos sin suministro de bebidas"]
[56104,"Salones de te"]
[65120,"Seguros generales           "]
[81292,"Servicio de barrido de calles y remoción de hielo y nieve"]
[53200,"Servicio de mensajería         "]
[96031,"Servicio fúnebre"]
[70201,"Servicios contab, asesor. empresas no prestados por profesio"]
[69201,"Servicios contables prestados por profes. independientes"]
[86901,"Servicios de acompañantes de enfermos"]
[86903,"Servicios de ambulancias"]
[2400,"Servicios de apoyo a la forestación"]
[85500,"Servicios de apoyo educativo        "]
[71101,"Servicios de arquitectura"]
[96091,"Servicios de baños de vapor y de sol (solarios)"]
[74902,"Servicios de consultoría en agronomía"]
[74103,"Servicios de decoración y diseño de interiores"]
[74101,"Servicios de diseño gráfico"]
[1621,"Servicios de esquila."]
[52211,"Servicios de estacionamiento y garages"]
[1611,"Servicios de fumigación y riego"]
[80102,"Servicios de guardias de seguridad sin monitoreo electrónico"]
[71103,"Servicios de ingeniería"]
[81301,"Servicios de jardinería"]
[86902,"Servicios de laboratorios de análisis clínicos y radiológico"]
[96011,"Servicios de lavaderos de ropa"]
[81291,"Servicios de limpieza de chimeneas y estufas"]
[81302,"Servicios de limpieza de piscinas"]
[96094,"Servicios de masajes reductores y de adelgazamiento"]
[74903,"Servicios de meteorología"]
[96021,"Servicios de peluquerías y de salones de belleza"]
[1612,"Servicios de provisión de maquinaria agrícola con operarios"]
[96012,"Servicios de tintorerías y limpieza en seco"]
[74901,"Servicios de traducción"]
[80101,"Servicios de transportes de caudales"]
[69101,"Servicios jurídicos y notariales prestados por profes. indep"]
[86202,"Servicios odontológicos"]
[18120,"Servicios relacionados con la impresión        "]
[64302,"Sociedades financieras de inversión (SAFI)"]
[35300,"Suministro de vapor y aire acondicionado      "]
[45205,"Talleres de alineación y balanceo"]
[80201,"Talleres de cerrajería"]
[45203,"Talleres de chapa y pintura"]
[45202,"Talleres de gomería "]
[25921,"Talleres de tornería"]
[31003,"Tapicería de muebles y vehículos automotores"]
[13120,"Tejeduría de productos textiles         "]
[61000,"Telecomunicaciones.       "]
[51200,"Transporte de carga por vía aérea      "]
[49120,"Transporte de carga por vía férrea       "]
[50220,"Transporte de carga, por vías de navegación interiores     "]
[49223,"Transporte de escolares"]
[51100,"Transporte de pasajeros por vía aérea      "]
[50210,"Transporte de pasajeros por vías de navegación interiores   "]
[50120,"Transporte marítimo y de cabotaje de carga      "]
[50110,"Transporte marítimo y de cabotaje de pasajero      "]
[49300,"Transporte por tuberías.        "]
[49232,"Transporte terrestre de carga interdeptal. e internacional"]
[49222,"Transporte terrestre de pasajeros en remises"]
[49221,"Transporte terrestre de pasajeros en taxímetros"]
[49224,"Transporte terrestre de pasajeros larga distancia regulares"]
[49210,"Transporte terrestre de pasajeros urbano, suburbano o metrop"]
[49231,"Transporte terrestre local de carga (fletes, mudanzas, etc)"]
[38210,"Tratamiento y eliminación de desechos no peligrosos      "]
[38220,"Tratamiento y eliminación de desechos peligrosos       "]
[93191,"Turf"]
[1906,"Usuario de Zona Franca"]
[97002,"Usuarios de servicios complementarios"]
[2101,"Viveros de árboles forestales"]

{"sheet":"Hoja3","index":1,"n_rows":27,"n_cols":14,"rows_kept":27,"cut":false,"hidden":true,"merged":[[2,2,2,3],[18,6,20,6],[18,3,18,4],[19,7,19,10],[20,7,20,10]]}
[null,"VALOR UI",3.2425999999999999]
[]
[null,null,"CAPACITACION"]
[null,null,"empresas","participantes","p/e","duracion (hs)","costo total","costo por participante","costo por hora","CT/h/part","subs ","%subs"]
[null,null,1,6,{"$f":"D5/C5","v":6},{"$f":"6*8","v":48},{"$f":"H5*D5","v":194556},32426,{"$f":"G5/F5","v":4053.25},{"$f":"I5/D5","v":675.54166666666663},{"$f":"L5*G5","v":136189.19999999998},0.7]
[null,null,null,6,6,48,300000,50000,6250,1041.6666666666667,null,null,"Subsidio","% subs"]
[null,null,null,null,null,null,null,{"$f":"10000*C1","v":32426},null,{"$f":"270*C1","v":875.50199999999995},{"$f":"60000*C1","v":194556},null,{"$f":"N7*G6","v":136189.19999999998},{"$f":"K5/G6","v":0.45396399999999992}]
[null,"MAXIMOS"]
[]
[]
[]
[]
[null,"Expediente","Tipo de apoyo","Solicitante","Rut","Servicio o Capacitación Solicitada","Proveedor","Cotización SIN IVA","Duración (meses)","Carga Horaria","Costo hora / Participante","Personas a Capacitar","Subsidio ($)","Porcentaje %"]
[null,null,"Capacitación a Medida","Manentia Software S.A.","214786020019","Capacitacion a Medida en Fortalecimiento de capacidades y formación para mandos medios","SBS TEAM",{"$f":"D22","v":500000},12,{"$f":"D21","v":33},{"$f":"D25","v":2164.5021645021648},{"$f":"D20","v":7},{"$f":"H14*N14","v":101062.49999999997},{"$f":"K19","v":0.20212499999999994}]
[]
[]
[]
[null,null,null,null,null,null,"subsidios",null,"subsidio corregido por tope subs","subsidio corregido por tope subs","subsidio corregido por ct/h/p","topes"]
[null,null,"Proveedor","SBS TEAM",null,null,null,0.5,{"$f":"I22/D22","v":0.38911200000000001},{"$f":"J22/D22","v":0.45396399999999998},{"$f":"H22/D22","v":0.20212499999999994}]
[null,null,"participantes",7,{"$f":"D20","v":7},null,null,{"$f":"D20","v":7}]
[null,null,"duracion",33,{"$f":"D21","v":33},null,null,{"$f":"D21","v":33}]
[null,null,"costo total",500000,{"$f":"IF(D26<0,D22,D22-D26*D21)","v":202124.99999999994},{"$f":"E22/D22","v":0.40424999999999989},"Subsidio total",{"$f":"$H$19*E22","v":101062.49999999997},{"$f":"H22-H26","v":194556},{"$f":"J23*H20","v":226982},{"$f":"K19*D22","v":101062.49999999997},{"$f":"60000*C1","v":194556}]
[null,null,"costo por participante",{"$f":"D22/D20","v":71428.571428571435},{"$f":"E22/E20","v":28874.999999999993},null,"subs/part",{"$f":"H22/H20","v":14437.499999999996},{"$f":"I22/H20","v":27793.714285714286},{"$f":"(I23-I27)","v":32426},{"$f":"K22/H20","v":14437.499999999996},{"$f":"10000*C1","v":32426}]
[null,null,"costo por hora",{"$f":"D22/D21","v":15151.515151515152},{"$f":"E22/E21","v":6124.9999999999982},null,null,null,null,null,{"$f":"K22/H21","v":3062.4999999999991}]
[null,null,"costo /h /p",{"$f":"D22/D21/D20","v":2164.5021645021648},{"$f":"E24/E20","v":874.99999999999977},875,"subs/h/p",{"$f":"H22/H21/H20","v":437.49999999999989},null,null,{"$f":"K24/H20","v":437.49999999999989}]
[null,null,null,{"$f":"(D25-F25)*D20","v":9026.5151515151538},null,null,"factor correcion total",{"$f":"H22-$L$22","v":-93493.500000000029},{"$f":"I22-$L$22","v":0},{"$f":"J22-$L$22","v":32426}]
[null,null,null,null,null,null,"factor correcion/part",{"$f":"H23-$L$23","v":-17988.500000000004},{"$f":"I23-$L$23","v":-4632.2857142857138},{"$f":"J23-$L$23","v":0}]